Cogmind - Beta 10.2 *** ADVENTURER MODE // 2021.01.15 @ 20:11:40 Player: Luigi Panache Result: Destroyed by Fortress with Enhanced Nova Cannon Performance ------------- Evolutions (8) 4000 Regions Visited (29) 5800 Robots Destroyed (303) 1515 Value Destroyed (15645) 15645 Prototype IDs (39) 780 Alien Tech Used (3) 600 Bonus (7319) 7319 TOTAL SCORE: 35659 Bonus ------- High Alert Combat Kills 2639 Follower Combat Kills 1849 Network Hubs Disabled 200 Met Zhirov 300 Met Warlord at Base 500 MAIN.C Attacked Warlord 500 Warlord Defense Kill 334 Met R17 at Cetus 500 Scanned by Researcher 500 Friendly Fire -3 Cogmind --------- Core Integrity 0/1450 Matter 300/300 Energy 166/170 System Corruption 21% Temperature Cool (9) Movement Core (100) Ox1 Location -2/Quarantine Parts ------- > --- POWER (2) -------- Micro Fission Core > --- PROPULSION (4) --- (None) > --- UTILITY (15) ----- Advanced Signal Interpreter Advanced Signal Interpreter Advanced Terrain Scan Processor 0b10 Decoder Chip [Scout] Experimental Targeting Computer Experimental Targeting Computer Advanced Target Analyzer Advanced Target Analyzer > --- WEAPON (2) ------- (None) > --- INVENTORY (4) ---- Advanced Heavy Siege Treads Railgun Railgun Peak State ------------ > --- POWER ------------ Light Particle Reactor Light Quantum Reactor > --- PROPULSION ------- Armored Heavy Treads Biometal Heavy Treads > --- UTILITY ---------- High-capacity Storage Unit High-capacity Storage Unit Advanced Signal Interpreter Advanced Signal Interpreter Advanced Terrain Scan Processor 0b10 Decoder Chip [Scout] Experimental Targeting Computer Experimental Targeting Computer Experimental Targeting Computer Advanced Target Analyzer Launcher Loader Heavy Armor Plating Improved Medium Armor Plating > --- WEAPON ----------- Sigix Terminator > --- INVENTORY -------- Light Particle Reactor Spiked Medium Treads Improved Heavy Treads Advanced Heat Sink High-capacity Storage Unit High-capacity Matter Pod Transdimensional Reconstructor Coil Gun KE Penetrator KE Penetrator KE Penetrator KE Penetrator KE Penetrator Railgun Railgun Railgun Railgun Railgun Improved KE Penetrator [Rating: 153] Favorites ----------- Power Cold Fusion Reactor Engine Improved Deuterium Engine Power Core Fission Core Reactor Cold Fusion Reactor Propulsion Light Treads Treads Light Treads Leg Carbon-fiber Leg Hover Unit Improved Airjet Flight Unit Improved VTOL Module Utility High-capacity Storage Unit Device Advanced Sensor Array Storage High-capacity Storage Unit Processor Advanced Signal Interpreter Hackware Advanced Hacking Suite Protection Centrium Medium Armor Plating Artifact Stasis Generator Weapon Improved KE Penetrator Energy Gun Heavy EM Pulse Gun Energy Cannon Improved EM Pulse Cannon Ballistic Gun Improved KE Penetrator Ballistic Cannon Hypervelocity Gauss Cannon Launcher Heavy Proton Missile Launcher Slashing Weapon Axe Build | -11 -10 -10 -9 -9 -9 -8 -8 -7 -7 -7 -6 -6 -6 -6 -6 -5 -5 -5 -5 -4 -4 -4 -4 -4 -3 -3 -3 -2 -2 ------- Run | Scr Mat Min Mat Min Exi Min Mat Fac Was Fac Fac Ext Cet Arc Hub Fac Upp Upp War Pro Fac Upp Upp Zhi Pro Res Tes Res Qua Slots Evolved 16 | . . . 2 . . . 2 2 . . 2 . . . . 2 . . . . 2 . . . . 2 . 2 . Power 1 | . . . . . . . . 1 . . . . . . . . . . . . . . . . . . . . . Propulsion 2 | . . . . . . . 1 1 . . . . . . . . . . . . . . . . . . . . . Utility 13 | . . . 2 . . . 1 . . . 2 . . . . 2 . . . . 2 . . . . 2 . 2 . Weapon . | . . . . . . . . . . . . . . . . . . . . . . . . . . . . . . Parts Attached 312 | 2 6 . 16 1 2 . 13 4 4 23 14 35 7 3 7 35 3 2 1 10 9 . . 8 3 12 40 28 24 Power 33 | . 1 . 2 . . . 1 1 . 4 . 6 1 1 3 . . . . 1 3 . . 2 . . . 4 3 Engine 11 | . 1 . 2 . . . 1 1 . 4 . 2 . . . . . . . . . . . . . . . . . Core 8 | . . . . . . . . . . . . 4 . 1 . . . . . 1 1 . . . . . . . 1 Reactor 14 | . . . . . . . . . . . . . 1 . 3 . . . . . 2 . . 2 . . . 4 2 Propulsion 67 | 2 . . 3 . . . 6 1 . 9 2 16 1 2 1 4 . 1 . 4 2 . . . . 1 4 7 1 Treads 54 | 2 . . 3 . . . 5 1 . 8 2 9 1 2 1 4 . 1 . 4 2 . . . . 1 4 3 1 Leg 11 | . . . . . . . . . . . . 7 . . . . . . . . . . . . . . . 4 . Wheel . | . . . . . . . . . . . . . . . . . . . . . . . . . . . . . . Hover 1 | . . . . . . . . . . 1 . . . . . . . . . . . . . . . . . . . Flight 1 | . . . . . . . 1 . . . . . . . . . . . . . . . . . . . . . . Utility 90 | . 3 . 4 . 2 . 3 . 2 3 5 7 3 . 2 11 2 1 . 3 3 . . 6 2 3 8 10 7 Device 21 | . . . . . . . 1 . . 1 . 2 . . . 4 1 . . . 2 . . 1 1 . 2 3 3 Storage 11 | . 2 . . . 2 . 1 . . . . . . . . . . . . 2 . . . 2 . . 2 . . Processor 15 | . 1 . 2 . . . . . 1 2 . . . . . 1 . 1 . . . . . . . . 1 4 2 Hackware 2 | . . . . . . . . . . . 1 . . . . 1 . . . . . . . . . . . . . Protection 40 | . . . 2 . . . 1 . 1 . 4 5 3 . 2 5 1 . . 1 1 . . 3 1 3 3 3 1 Artifact 1 | . . . . . . . . . . . . . . . . . . . . . . . . . . . . . 1 Weapon 122 | . 2 . 7 1 . . 3 2 2 7 7 6 2 . 1 20 1 . 1 2 1 . . . 1 8 28 7 13 Energy Gun 13 | . . . 2 1 . . 2 2 . 2 . . . . . . . . . . . . . . . . 4 . . Energy Cannon 10 | . . . . . . . . . . . 1 . . . . 5 . . . . . . . . . . 2 2 . Ballistic Gun 59 | . 2 . 3 . . . 1 . 2 5 4 6 2 . . 6 1 . . . 1 . . . . 3 11 4 8 Ballistic Cannon 2 | . . . . . . . . . . . . . . . . 2 . . . . . . . . . . . . . Launcher 25 | . . . 1 . . . . . . . 2 . . . 1 3 . . 1 2 . . . . 1 3 8 1 2 Special Weapon . | . . . . . . . . . . . . . . . . . . . . . . . . . . . . . . Impact Weapon . | . . . . . . . . . . . . . . . . . . . . . . . . . . . . . . Slashing Weapon 13 | . . . 1 . . . . . . . . . . . . 4 . . . . . . . . . 2 3 . 3 Piercing Weapon . | . . . . . . . . . . . . . . . . . . . . . . . . . . . . . . Special Melee Weapon . | . . . . . . . . . . . . . . . . . . . . . . . . . . . . . . Unidentified Prototypes 24 | . . . 1 . . . 1 . . 3 . . 3 . 1 1 . . . . . . . 5 . . 4 1 4 Parts Lost 90 | . . . . . . . 1 . . . 1 24 . . . 5 2 . 3 4 . . . . 1 1 14 15 19 Power 12 | . . . . . . . . . . . . 4 . . . . 1 . . . . . . . . . . 4 3 Propulsion 22 | . . . . . . . . . . . . 10 . . . . . . . 2 . . . . . . 4 3 3 Utility 34 | . . . . . . . . . . . 1 6 . . . 3 1 . 3 1 . . . . 1 1 6 2 9 Weapon 22 | . . . . . . . 1 . . . . 4 . . . 2 . . . 1 . . . . . . 4 6 4 Highest Loss Streak 13 | . . . . . . . 1 . . . 1 13 . . . 2 2 . 2 4 . . . . 1 1 7 6 6 Average Slot Usage (%) 86 | . 89 100 95 100 100 100 98 96 99 99 99 87 88 92 87 86 82 87 87 73 78 78 78 78 76 71 75 60 73 Engine 4 | . 14 14 10 11 11 11 9 12 15 14 13 6 . . . . . . . . . . . . . . . . . Reactor 4 | . . . . . . . . . . . . . 4 6 10 11 5 5 5 5 6 10 10 10 10 9 9 6 5 Treads 16 | . 28 28 21 22 22 22 26 29 30 29 26 15 4 7 15 16 17 17 17 13 12 10 10 10 10 9 9 5 6 Leg 1 | . . . . . . . . . . . . 7 15 10 . . . . . . . . . . . . . 3 . Device 3 | . . . . . . . 3 7 1 1 6 2 . . . 6 5 5 5 . 4 5 5 5 7 9 9 2 3 Storage 18 | . 16 28 22 22 22 22 26 23 23 23 20 20 20 20 20 17 17 17 17 21 21 21 21 21 18 14 17 12 7 Processor 10 | . 2 . 11 11 11 11 9 7 7 6 6 6 6 6 6 5 11 16 16 11 10 10 10 10 10 9 11 17 36 Protection 8 | . . . 7 11 11 11 5 . 5 5 12 9 14 20 18 13 4 5 4 3 8 10 10 10 7 9 6 2 3 Energy Gun 2 | . . . 9 22 22 22 15 15 3 1 . . . . . . . . . . . . . . . . . 1 . Ballistic Gun 9 | . 28 28 11 . . . 1 . 10 13 11 12 13 13 12 3 10 11 10 5 8 10 10 10 6 4 3 3 6 Naked Turns . | . . . . . . . . . . . . . . . . . . . . . . . . . . . . . . Heaviest Build 233 | 12 39 39 51 51 83 83 120 123 130 132 144 147 155 155 177 176 140 126 126 176 223 223 223 226 214 233 228 169 139 Greatest Support 150 | 40 40 40 40 40 40 40 60 80 80 98 98 100 80 126 126 130 130 135 135 108 140 140 140 140 140 140 150 135 135 Greatest Overweight (x) 39 | . . . 1 1 2 2 5 1 1 2 1 39 1 1 1 1 1 . . 2 2 1 1 1 1 1 2 5 5 Average Overweight (x) . | . . . . 1 1 2 1 1 1 1 1 1 1 1 1 1 . . . 1 1 1 1 1 1 1 1 1 . Largest Inventory Capacity 28 | 6 16 16 16 16 20 20 28 28 28 28 28 28 28 28 28 28 28 28 28 28 28 28 28 28 28 28 28 28 20 Average Capacity 25 | 6 7 16 16 16 16 20 27 28 28 28 28 28 28 28 28 28 28 28 28 28 28 28 28 28 28 28 28 27 19 Most Carried 28 | 6 9 11 16 16 18 18 28 28 28 28 28 28 28 28 28 28 28 28 28 28 28 28 28 28 28 27 28 25 20 Average Carried 24 | 6 6 9 14 16 16 17 23 27 27 27 27 24 27 28 27 27 28 28 28 23 26 28 28 28 27 26 25 21 18 Final Capacity 28 | 6 16 16 16 16 20 20 28 28 28 28 28 28 28 28 28 28 28 28 28 28 28 28 28 28 28 28 28 20 4 Final Carried 28 | 6 9 11 16 16 17 18 28 28 28 28 27 28 28 28 28 28 28 28 28 22 28 28 28 28 28 27 20 17 4 Class Distribution -------------------- 71% | Hauler-Mutant 13% | Scavenger-Mutant 11% | Mutant Dominant Class ---------------- Mutant | -10/Materials Mutant | -10/Mines Mutant | -9/Materials Mutant | -9/Mines Mutant | -9/Exiles Hauler-Mutant | -8/Mines Hauler-Mutant | -8/Materials Hauler-Mutant | -7/Factory Hauler-Mutant | -7/Waste Hauler-Mutant | -7/Factory Hauler-Mutant | -6/Factory Hauler-Mutant | -6/Extension Scavenger-Mutant | -6/Cetus Scavenger-Mutant | -6/Archives Scavenger-Mutant | -6/Hub_04(d) Hauler-Mutant | -5/Factory Hauler-Mutant | -5/Upper Caves Hauler-Mutant | -5/Upper Caves Hauler-Mutant | -5/Warlord Hauler-Mutant | -4/Proximity Caves Hauler-Mutant | -4/Factory Hauler-Mutant | -4/Upper Caves Hauler-Mutant | -4/Upper Caves Hauler-Mutant | -4/Zhirov Hauler-Mutant | -3/Proximity Caves Hauler-Mutant | -3/Research Hauler-Mutant | -3/Testing Hauler-Mutant | -2/Research Scavenger-Mutant | -2/Quarantine Resources | -11 -10 -10 -9 -9 -9 -8 -8 -7 -7 -7 -6 -6 -6 -6 -6 -5 -5 -5 -5 -4 -4 -4 -4 -4 -3 -3 -3 -2 -2 ----------- Run | Scr Mat Min Mat Min Exi Min Mat Fac Was Fac Fac Ext Cet Arc Hub Fac Upp Upp War Pro Fac Upp Upp Zhi Pro Res Tes Res Qua Matter Collected 9280 | 166 256 . 156 40 . 10 113 . 386 508 360 733 70 169 240 1591 86 46 167 311 163 51 115 . 223 724 1245 459 892 Remotely . | . . . . . . . . . . . . . . . . . . . . . . . . . . . . . . Salvage Created 17225 | . 389 . 467 98 . . 361 . 577 923 586 966 . 213 792 2649 52 . 135 660 398 . 99 . 455 1871 2959 1225 1350 Parts 848 | . 46 . 25 1 . . 26 . 2 57 32 43 . 8 33 113 4 . 4 13 30 . 4 . 18 103 164 36 86 Haulers Intercepted 7 | . 2 . 1 . . . . . . 1 . . . . 1 1 . . . . . . . . . . 1 . . Recyclers Shooed 7 | . . 1 1 . . . . . . . . 2 . . 3 . . . . . . . . . . . . . . Parts Field Recycled . | . . . . . . . . . . . . . . . . . . . . . . . . . . . . . . Retrieved Matter . | . . . . . . . . . . . . . . . . . . . . . . . . . . . . . . Parts Self-Destructed 43 | . . . . . . . . . . . . . . . . . 4 . 30 1 . . 4 . 4 . . . . Prevented 32 | . . . . . . . . . . . . . . . . . . . 7 11 . . . . 14 . . . . Kills | -11 -10 -10 -9 -9 -9 -8 -8 -7 -7 -7 -6 -6 -6 -6 -6 -5 -5 -5 -5 -4 -4 -4 -4 -4 -3 -3 -3 -2 -2 ------- Run | Scr Mat Min Mat Min Exi Min Mat Fac Was Fac Fac Ext Cet Arc Hub Fac Upp Upp War Pro Fac Upp Upp Zhi Pro Res Tes Res Qua Combat Hostiles Destroyed 243 | . 11 . 7 2 . . 8 . . 17 10 15 . 3 7 37 1 . 3 9 6 . 2 . 8 26 41 13 17 Melee 5 | . . . . . . . . . . . . 1 . . . . . . . . . . . . . 1 1 . 2 Guns 135 | . 11 . 5 2 . . 8 . . 16 6 14 . 3 6 15 1 . . . 3 . 2 . . 8 18 2 15 Cannons 16 | . . . . . . . . . . . . . . . . 14 . . . . . . . . . . . 2 . AOE 49 | . . . 2 . . . . . . . 4 . . . 1 5 . . 3 4 3 . . . 5 9 11 2 . Classes Destroyed 19 | . 5 . 2 . . . . . . 3 . 1 . . . . . . . . . . . . . 2 3 2 1 Worker 20 | . 2 . 1 . . . 1 . . . 3 . . . 3 5 . . . . . . . . . 1 3 . 1 Builder 14 | . . . . . . . . . . 1 1 1 . . 1 5 . . . . 1 . . . . 4 . . . Tunneler 1 | . . . . . . . . . . . . . . . . . . . . . . . . . . 1 . . . Hauler 7 | . 2 . 1 . . . . . . 1 . . . . 1 1 . . . . . . . . . . 1 . . Recycler 7 | . . . 1 . . . . . . 1 . 1 . . 2 1 . . . . 1 . . . . . . . . Operator 1 | . . . . . . . . . . . . . . . . . . . . . . . . . . . . . 1 Watcher 7 | . 2 . . . . . . . . 1 2 . . . . 1 . . . . . . . . . . 1 . . Swarmer 39 | . 9 . . . . . 3 . . 3 . . . . . . . . . . 3 . . . 5 7 9 . . Grunt 97 | . 2 . 6 2 . . 2 . . 4 6 6 . . 3 23 . . 3 9 . . . . . 6 16 6 3 Brawler 3 | . . . . . . . . . . 1 . . . . . 2 . . . . . . . . . . . . . Duelist 1 | . . . . . . . . . . . . . . . . . . . . . . . . . . 1 . . . Protector 1 | . . . . . . . . . . . . . . . . . . . . . . . . . . . 1 . . Researcher 3 | . . . . . . . . . . . . . . . . . . . . . . . . . . . 2 . 1 Sentry 28 | . . . 1 . . . 3 . . 3 3 7 . 3 1 4 . . . . 1 . . . 1 1 . . . Demolisher 1 | . . . . . . . . . . . . . . . . . . . . . . . . . . . . 1 . Specialist 2 | . . . . . . . . . . . . . . . . . . . . . . . . . . . . . 2 Hunter 25 | . . . . . . . . . . . . 2 . . 1 2 . . . . . . . . 2 4 6 5 3 Programmer 43 | . . . . . . . . . . 6 1 . . . 2 6 1 . . . 2 . 2 . . 7 7 . 9 Striker 1 | . . . . . . . . . . . . . . . . . . . . . . . . . . . . 1 . Protovariant X 1 | . . . . . . . . . . . . . . . . . . . . . . . . . . . 1 . . Protovariant H 1 | . . . . . . . . . . . . . . . . . . . . . . . . . . . 1 . . Best Kill Streak 11 | . 6 . 3 2 . . 3 . . 3 8 4 . 1 3 6 1 . 3 3 4 . 2 . 5 11 6 4 4 Combat Bots Only 7 | . 6 . 2 2 . . 3 . . 3 4 3 . 1 2 4 1 . 3 3 3 . 2 . 5 7 5 4 3 Max Kills in Single Turn 4 | . 1 . 2 1 . . 1 . . 1 4 2 . 1 3 3 1 . 2 2 3 . 1 . 2 3 2 2 1 Gunslinging 1 | . . . . . . . . . . . . . . . . . . . . . . . . . . . 1 . . Exploded 3 | . . . 1 . . . . . . . 2 . . . 1 1 . . 2 2 3 . . . 2 2 2 1 . Melee 1 | . . . . . . . . . . . . 1 . . . . . . . . . . . . . 1 1 . 1 Uniques/NPCs Destroyed . | . . . . . . . . . . . . . . . . . . . . . . . . . . . . . . Combat | -11 -10 -10 -9 -9 -9 -8 -8 -7 -7 -7 -6 -6 -6 -6 -6 -5 -5 -5 -5 -4 -4 -4 -4 -4 -3 -3 -3 -2 -2 -------- Run | Scr Mat Min Mat Min Exi Min Mat Fac Was Fac Fac Ext Cet Arc Hub Fac Upp Upp War Pro Fac Upp Upp Zhi Pro Res Tes Res Qua Damage Taken 25145 | . 264 57 168 108 . . 292 . . 1117 708 3825 105 534 507 2555 110 19 607 799 100 . . . 484 1259 4349 2655 4523 Core 3134 | . 40 8 29 21 . . 50 . . 118 97 359 16 36 31 206 . . 102 48 . . . . 37 30 453 359 1094 Absorbed by Shields 198 | . . . . . . . . . . . . 170 . . . . . . . . 28 . . . . . . . . Reduced by Siege Mode 230 | . . . . . . . . . . . . . . 19 . . . . . 9 . . . . . . 86 91 25 Core Remaining (%) 77 | 100 . 80 . . . 87 90 . . 83 . . . . 36 . . . . 64 . . . . 96 . 62 . . Volleys Fired 801 | . 39 . 28 7 . . 17 . 14 63 26 57 . 18 40 117 5 7 5 19 12 . 9 . 15 60 121 54 68 Largest 2 | . 2 . 2 2 . . 2 . 2 2 2 2 . 2 2 2 2 2 2 1 2 . 2 . 1 2 2 2 2 Hottest 149 | . 40 . 85 85 . . 110 . 66 110 69 66 . 70 70 138 70 70 70 40 70 . 70 . 40 75 135 149 70 Shots Fired 1410 | . 78 . 56 14 . . 33 . 28 126 47 112 . 36 78 212 12 15 10 19 23 . 18 . 15 87 191 84 116 Gun 1127 | . 78 . 56 14 . . 33 . 28 126 39 112 . 36 73 97 12 15 6 . 22 . 18 . . 57 138 52 115 Cannon 120 | . . . . . . . . . . . 3 . . . . 106 . . . . . . . . . . . 11 . Launcher 163 | . . . . . . . . . . . 5 . . . 5 9 . . 4 19 1 . . . 15 30 53 21 1 Special . | . . . . . . . . . . . . . . . . . . . . . . . . . . . . . . Kinetic 1073 | . 78 . 26 . . . 3 . 28 108 39 112 . 36 73 152 12 15 6 . 22 . 18 . . 57 134 39 115 Thermal 1 | . . . . . . . . . . . . . . . . . . . . . . . . . . . . . 1 Explosive 28 | . . . . . . . . . . . 5 . . . 5 9 . . 4 5 . . . . . . . . . Electromagnetic 308 | . . . 30 14 . . 30 . . 18 3 . . . . 51 . . . 14 1 . . . 15 30 57 45 . Robot Hit Streak 73 | . 17 . 13 19 . . 14 . 27 25 35 49 . 7 18 46 9 7 9 13 11 . 14 . 11 21 73 25 50 Robot Miss Streak 4 | . 1 . 1 1 . . 1 . . 4 3 2 . 1 3 2 1 1 . 1 2 . 1 . 1 1 2 3 1 Penetration Max 2 | . . . . . . . . . . . . 1 . 1 1 1 . . . . 1 . . . . . 1 . 2 Secondary Targets 17 | . 2 . 1 1 . . . . . 1 . 4 . . . 1 . . . . . . . . . 1 4 . 2 Max Gunslinging Chain 1 | . 1 . 1 1 . . . . . 1 . 1 . . . 1 . . . . . . . . . 1 1 . 1 Shots Hit Robots 1196 | . 62 . 48 13 . . 24 . 26 95 40 100 . 28 59 182 9 11 9 16 18 . 16 . 13 76 175 60 116 Core Hits 716 | . 23 . 20 4 . . 16 . 5 36 69 54 . 8 72 98 1 1 14 21 12 . 4 . 13 55 101 45 44 Critical Hits 148 | . 1 . . . . . . . . 6 . 1 . 8 10 49 3 3 . . 5 . 4 . . 8 30 . 20 Critical Kills 51 | . . . . . . . . . . 4 . 1 . 2 4 18 1 . . . 1 . . . . 3 10 . 7 Critical Parts Destroyed 89 | . 1 . . . . . . . . 2 . . . 4 4 29 2 2 . . 4 . 4 . . 5 20 . 12 Melee Attacks 53 | . . . 2 . . . . . . . . . . . . 8 . . . . . . . . . 13 12 . 18 Impact . | . . . . . . . . . . . . . . . . . . . . . . . . . . . . . . Slashing 53 | . . . 2 . . . . . . . . . . . . 8 . . . . . . . . . 13 12 . 18 Piercing . | . . . . . . . . . . . . . . . . . . . . . . . . . . . . . . Sneak Attacks . | . . . . . . . . . . . . . . . . . . . . . . . . . . . . . . Combat Hostiles . | . . . . . . . . . . . . . . . . . . . . . . . . . . . . . . Follow-up Attacks . | . . . . . . . . . . . . . . . . . . . . . . . . . . . . . . Damage Inflicted 41207 | . 688 26 669 255 . 12 464 . 528 2066 1843 2122 . 757 4029 6330 284 247 755 1240 714 . 517 . 767 3525 7237 2167 3965 Guns 23450 | . 687 . 534 184 . . 317 . 528 2036 1018 2051 . 732 2071 2845 284 247 148 . 578 . 517 . . 1328 3724 615 3006 Cannons 2526 | . . . . . . . . . . . . . . . . 2194 . . . . . . . . . . . 332 . Explosions 13654 | . . . 135 70 . . 89 . . . 818 . . . 1934 1134 . . 607 1240 136 . . . 767 1925 3332 1220 247 Melee 989 | . . . . . . . . . . . . . . . . . . . . . . . . . . 176 167 . 646 Ramming 588 | . 1 26 . 1 . 12 58 . . 30 7 71 . 25 24 157 . . . . . . . . . 96 14 . 66 Kinetic 23052 | . 687 . 181 . . . 32 . 528 1794 1018 2051 . 732 2071 3741 284 247 148 . 578 . 517 . . 1328 3652 457 3006 Thermal 2044 | . . . 135 70 . . 89 . . . . . . . . 324 . . . . 48 . . . . 242 561 328 247 Explosive 4402 | . . . . . . . . . . . 818 . . . 1606 810 . . 607 489 . . . . . . 72 . . Electromagnetic 10132 | . . . 353 184 . . 285 . . 242 . . . . 328 1298 . . . 751 88 . . . 767 1683 2771 1382 . Impact . | . . . . . . . . . . . . . . . . . . . . . . . . . . . . . . Slashing 989 | . . . . . . . . . . . . . . . . . . . . . . . . . . 176 167 . 646 Piercing . | . . . . . . . . . . . . . . . . . . . . . . . . . . . . . . Highest Corruption 21 | . 1 1 . . . . . . . 6 1 1 1 1 2 5 7 7 7 6 . . . . . . 15 . 21 Average Corruption 3 | . 1 1 . . . . . . . 1 1 1 1 1 1 2 6 7 6 6 . . . . . . 6 . 10 Corruption Purged 5 | . . . . . . . . . . . . . . . . 5 . . . . . . . . . . . . . Effects 206 | . . . . . . . . . . 8 . 8 2 . 8 37 15 24 1 20 . . . . . . 32 . 51 Message Errors 35 | . . . . . . . . . . 3 . 1 1 . 2 7 1 7 . 2 . . . . . . 4 . 7 Matter Fused 38 | . . . . . . . . . . . . . . . . 7 5 5 . 7 . . . . . . 5 . 9 Heat Flow Errors 20 | . . . . . . . . . . . . . . . . 3 2 3 . 5 . . . . . . 3 . 4 Energy Discharges 26 | . . . . . . . . . . 1 . 4 1 . 2 5 1 2 1 . . . . . . . 3 . 6 Data Loss (minor) 24 | . . . . . . . . . . 2 . 1 . . 1 2 3 5 . 4 . . . . . . 2 . 4 Data Loss (major) 5 | . . . . . . . . . . . . . . . . 1 . . . 1 . . . . . . 2 . 1 Misfires 3 | . . . . . . . . . . . . . . . . . 2 1 . . . . . . . . . . . Alerts 4 | . . . . . . . . . . . . . . . . . . . . . . . . . . . . . 4 Misdirections 5 | . . . . . . . . . . . . . . . . . . . . . . . . . . . . . 5 Targeting Errors 37 | . . . . . . . . . . 2 . 1 . . 3 8 1 1 . 1 . . . . . . 12 . 8 Weapon Failures 9 | . . . . . . . . . . . . 1 . . . 4 . . . . . . . . . . 1 . 3 Overload Shots . | . . . . . . . . . . . . . . . . . . . . . . . . . . . . . . Overflow Damage 475 | . . . 27 . . . . . . . 2 . . . 20 83 . . 7 . . . . . . 72 111 5 148 Projectiles 19 | . . . . . . . . . . . . . . . . 19 . . . . . . . . . . . . . Explosions 413 | . . . 27 . . . . . . . 2 . . . 20 41 . . 7 . . . . . . 72 111 5 128 Melee 43 | . . . . . . . . . . . . . . . . 23 . . . . . . . . . . . . 20 Knockbacks 21 | . . . . . . . 1 . . . . 1 . . . 16 . . . . . . . . . . . . 3 Impact 7 | . . . . . . . 1 . . . . 1 . . . 2 . . . . . . . . . . . . 3 Kinetic 13 | . . . . . . . . . . . . . . . . 13 . . . . . . . . . . . . . Secondary 1 | . . . . . . . . . . . . . . . . 1 . . . . . . . . . . . . . Self-Inflicted Damage 1376 | . . . . 22 . . 39 . . . 22 . . . . 136 . . . 26 . . . . . 100 206 105 720 Shots 24 | . . . . 1 . . 1 . . . 1 . . . . 3 . . . 1 . . . . . 2 9 5 1 Rammed 42 | . . 4 . 1 . 2 3 . . 3 1 6 . 2 2 7 . . . . . . . . . 5 2 . 4 Targets Rammed 47 | . 1 4 . 1 . 2 3 . . 3 1 8 . 2 2 8 . . . . . . . . . 5 2 . 5 Kicked 1 | . . . . . . . . . . . . 1 . . . . . . . . . . . . . . . . . Crushed 4 | . 1 . . . . . . . . . . 1 . . . 1 . . . . . . . . . . . . 1 Highest Temperature 477 | . 6 . 165 261 . . 327 . 105 357 185 84 . 349 279 277 240 252 3 238 477 4 328 4 28 128 469 87 175 Average Temperature 76 | . 6 . 60 137 . . 132 . 53 88 58 30 . 141 107 57 122 106 3 84 179 2 57 2 9 26 109 32 83 Received Heat Transfer 3964 | . 24 . 114 60 . . 126 . . 351 285 957 . 54 123 711 . 9 144 192 7 . . . 9 150 396 117 135 Effects 31 | . . . . . . . . . . 2 . . . 2 . 1 . . . . 18 . 2 . . . 6 . . Shutdowns 13 | . . . . . . . . . . 1 . . . 1 . . . . . . 10 . . . . . 1 . . Energy Bleed 4 | . . . . . . . . . . 1 . . . . . 1 . . . . 1 . 1 . . . . . . Interference 11 | . . . . . . . . . . . . . . 1 . . . . . . 4 . 1 . . . 5 . . Matter Decay 1 | . . . . . . . . . . . . . . . . . . . . . 1 . . . . . . . . Damage (minor) 2 | . . . . . . . . . . . . . . . . . . . . . 2 . . . . . . . . Siege Activations 18 | . . . . . . . . . . . . . . 3 . . . . . 2 . . . . . 3 6 2 2 Total Turns 303 | . . . . . . . . . . . . . . 50 . . . . . 23 . . . . . 50 122 29 29 Longest Duration 34 | . . . . . . . . . . . . . . 24 . . . . . 15 . . . . . 22 34 27 15 Robots Corrupted 39 | . . . . . . . . . . 1 . . . . . 4 . . . 5 . . . . 3 8 11 7 . Combat Hostiles 38 | . . . . . . . . . . 1 . . . . . 3 . . . 5 . . . . 3 8 11 7 . Parts Fried 76 | . . . 2 1 . . . . . 5 . . . . 1 7 . . . 3 . . . . 6 17 19 15 . Impact Corruptions 4 | . . . . . . . . . . . . . . . . 3 . . . . . . . . . . . . 1 Robots Melted . | . . . . . . . . . . . . . . . . . . . . . . . . . . . . . . Combat Hostiles . | . . . . . . . . . . . . . . . . . . . . . . . . . . . . . . Parts Melted 2 | . . . 1 . . . . . . . . . . . . . . . . . . . . . . 1 . . . Heat Transferred 1439 | . . . 150 100 . . 100 . . . . . . . . 150 . . . . 100 . . . . 150 400 250 39 Parts Sabotaged . | . . . . . . . . . . . . . . . . . . . . . . . . . . . . . . Parts Stolen . | . . . . . . . . . . . . . . . . . . . . . . . . . . . . . . Parts Stripped . | . . . . . . . . . . . . . . . . . . . . . . . . . . . . . . Power Chain Reactions 23 | . . . 2 1 . . 1 . . . . . . . . 3 . . . . 1 . . . . 6 7 2 . Missiles Intercepted . | . . . . . . . . . . . . . . . . . . . . . . . . . . . . . . Alert | -11 -10 -10 -9 -9 -9 -8 -8 -7 -7 -7 -6 -6 -6 -6 -6 -5 -5 -5 -5 -4 -4 -4 -4 -4 -3 -3 -3 -2 -2 ------- Run | Scr Mat Min Mat Min Exi Min Mat Fac Was Fac Fac Ext Cet Arc Hub Fac Upp Upp War Pro Fac Upp Upp Zhi Pro Res Tes Res Qua Peak Influence 1284 | . 236 46 122 81 . . 183 37 10 217 276 256 319 226 378 913 . . . . 511 . . . . 733 1284 1024 510 Initial 615 | . . 46 15 16 . . . 37 10 . 57 111 . 107 65 159 . . . . 38 . . . . . 300 615 403 Average 261 | . 103 46 50 25 . . 75 37 6 65 127 82 153 154 113 486 . . . . 169 . . . . 444 823 822 371 Maximum Alert Level 4 | . 1 . . . . . . . . 1 1 1 1 1 1 3 . . . . 2 . . . . 3 4 3 2 Low Security (%) 59 | 100 97 100 100 100 . 100 100 100 100 99 84 91 68 70 77 6 . . . . 72 . . . . 23 . . 2 Level 1 15 | . 2 . . . . . . . . . 15 8 31 29 22 26 . . . . 18 . . . . 11 25 . 62 Level 2 14 | . . . . . . . . . . . . . . . . 52 . . . . 9 . . . . 48 15 24 34 Level 3 6 | . . . . . . . . . . . . . . . . 14 . . . . . . . . . 16 21 75 . Level 4 3 | . . . . . . . . . . . . . . . . . . . . . . . . . . . 37 . . Level 5 . | . . . . . . . . . . . . . . . . . . . . . . . . . . . . . . High Security . | . . . . . . . . . . . . . . . . . . . . . . . . . . . . . . Max Security . | . . . . . . . . . . . . . . . . . . . . . . . . . . . . . . Squads Dispatched 71 | . . . 2 . . . . . . 4 6 6 1 . 5 15 . . . . 2 . . . . 8 13 1 8 Investigation 9 | . . . 1 . . . . . . . 2 . 1 . . 2 . . . . . . . . . . 2 1 . Extermination 21 | . . . . . . . . . . 3 2 . . . 2 3 . . . . 2 . . . . 3 3 . 3 Reinforcement 29 | . . . 1 . . . . . . 1 1 6 . . 2 6 . . . . . . . . . 3 4 . 5 Assault 5 | . . . . . . . . . . . . . . . . 3 . . . . . . . . . 1 1 . . Garrison 7 | . . . . . . . . . . . 1 . . . 1 1 . . . . . . . . . 1 3 . . Intercept . | . . . . . . . . . . . . . . . . . . . . . . . . . . . . . . Construction Impeded 12 | . . . . . . . . . . 1 . 3 . . 1 4 . . . . . . . . . 2 1 . . Haulers Reinforced 4 | . . . . . . . . . . . . . . . 1 1 . . . . . . . . . . 1 . 1 Stealth | -11 -10 -10 -9 -9 -9 -8 -8 -7 -7 -7 -6 -6 -6 -6 -6 -5 -5 -5 -5 -4 -4 -4 -4 -4 -3 -3 -3 -2 -2 --------- Run | Scr Mat Min Mat Min Exi Min Mat Fac Was Fac Fac Ext Cet Arc Hub Fac Upp Upp War Pro Fac Upp Upp Zhi Pro Res Tes Res Qua Distress Signals 28 | . 2 . . . . . . . . 1 . 4 2 . 2 5 . . . . . . . . . . 3 6 3 Communications Jammed . | . . . . . . . . . . . . . . . . . . . . . . . . . . . . . . Distress Signals . | . . . . . . . . . . . . . . . . . . . . . . . . . . . . . . Times Spotted 453 | . 17 3 13 3 . . 8 . . 25 19 47 12 10 29 75 3 1 21 9 7 . 2 . 7 34 63 14 31 Peak Tracking Total 18 | . 6 3 2 2 . . 3 . . 4 6 6 5 1 18 8 2 1 6 3 4 . 2 . 5 6 6 4 4 Tactical Retreats 36 | . . . . 1 . . . . . 1 . 10 . . 2 9 2 1 1 . 1 . . . . 1 4 1 2 Traps | -11 -10 -10 -9 -9 -9 -8 -8 -7 -7 -7 -6 -6 -6 -6 -6 -5 -5 -5 -5 -4 -4 -4 -4 -4 -3 -3 -3 -2 -2 ------- Run | Scr Mat Min Mat Min Exi Min Mat Fac Was Fac Fac Ext Cet Arc Hub Fac Upp Upp War Pro Fac Upp Upp Zhi Pro Res Tes Res Qua Traps Triggered 17 | . 1 . . . . . . 1 . 1 3 3 . . . 2 . . . . . . . . . . 5 . 1 Indirectly 3 | . . . . . . . . . . . . . . . . . . . . . . . . . . . 3 . . Trap Hack Attempts . | . . . . . . . . . . . . . . . . . . . . . . . . . . . . . . Triggered . | . . . . . . . . . . . . . . . . . . . . . . . . . . . . . . Disarmed . | . . . . . . . . . . . . . . . . . . . . . . . . . . . . . . Reprogrammed . | . . . . . . . . . . . . . . . . . . . . . . . . . . . . . . Reused . | . . . . . . . . . . . . . . . . . . . . . . . . . . . . . . Traps Extracted . | . . . . . . . . . . . . . . . . . . . . . . . . . . . . . . Installed . | . . . . . . . . . . . . . . . . . . . . . . . . . . . . . . Triggered 12 | . . . . . . . . . . . . . . . . 1 . . 11 . . . . . . . . . . Machines | -11 -10 -10 -9 -9 -9 -8 -8 -7 -7 -7 -6 -6 -6 -6 -6 -5 -5 -5 -5 -4 -4 -4 -4 -4 -3 -3 -3 -2 -2 ---------- Run | Scr Mat Min Mat Min Exi Min Mat Fac Was Fac Fac Ext Cet Arc Hub Fac Upp Upp War Pro Fac Upp Upp Zhi Pro Res Tes Res Qua Machines Disabled 47 | . . . . . . . . . . 1 . 4 . 2 11 12 . . . . 2 . . . . 3 9 . 3 Max in Single Turn 9 | . . . . . . . . . . 1 . 1 . 1 9 5 . . . . 1 . . . . 1 1 . 1 Garrison Access 5 | . . . . . . . . . . 2 . . . . . 1 . . . . . . . . . 1 . 1 . Network Hub 1 | . . . . . . . . . . . . . . . 1 . . . . . . . . . . . . . . Machines Sabotaged . | . . . . . . . . . . . . . . . . . . . . . . . . . . . . . . Garrisons Compromised . | . . . . . . . . . . . . . . . . . . . . . . . . . . . . . . Overloaded Fab Kills . | . . . . . . . . . . . . . . . . . . . . . . . . . . . . . . Fab Network Shutdowns 1 | . . . . . . . . . . . . . . . . . . . . . 1 . . . . . . . . Hacking | -11 -10 -10 -9 -9 -9 -8 -8 -7 -7 -7 -6 -6 -6 -6 -6 -5 -5 -5 -5 -4 -4 -4 -4 -4 -3 -3 -3 -2 -2 --------- Run | Scr Mat Min Mat Min Exi Min Mat Fac Was Fac Fac Ext Cet Arc Hub Fac Upp Upp War Pro Fac Upp Upp Zhi Pro Res Tes Res Qua Machines Accessed 70 | . 5 . 7 . 1 . 3 . . 8 4 7 1 . 4 6 . . 4 . 4 . . 4 . 3 3 2 4 Terminals 39 | . 5 . 5 . . . 3 . . 4 2 5 1 . 3 1 . . . . 2 . . . . 2 2 1 3 Fabricators 5 | . . . . . . . . . . 1 . . . . . 2 . . . . 2 . . . . . . . . Repair Stations 9 | . . . 2 . . . . . . 1 . 1 . . . 2 . . . . . . . . . 1 1 . 1 Recycling Units 2 | . . . . . . . . . . . 1 1 . . . . . . . . . . . . . . . . . Scanalyzers . | . . . . . . . . . . . . . . . . . . . . . . . . . . . . . . Garrison Access 6 | . . . . . . . . . . 2 1 . . . 1 1 . . . . . . . . . . . 1 . Total Hacks 196 | . 16 . 18 . 1 . 11 . . 17 7 17 3 . 11 17 . . 13 . 13 . . 17 . 5 17 2 11 Successful 119 | . 10 . 12 . 1 . 9 . . 11 2 13 . . 2 8 . . 13 . 8 . . 17 . 2 5 2 4 Failed 77 | . 6 . 6 . . . 2 . . 6 5 4 3 . 9 9 . . . . 5 . . . . 3 12 . 7 Catastrophic 19 | . 1 . 1 . . . 1 . . 2 . 1 1 . 1 3 . . . . 1 . . . . 2 4 . 1 Database Lockouts . | . . . . . . . . . . . . . . . . . . . . . . . . . . . . . . Manual 87 | . 14 . 11 . . . 11 . . 6 5 4 . . 9 1 . . . . 8 . . . . . 11 2 5 Terminals 113 | . 16 . 12 . . . 11 . . 9 4 11 3 . 10 3 . . . . 8 . . . . 2 15 1 8 Fabricators 15 | . . . . . . . . . . 4 . . . . . 6 . . . . 5 . . . . . . . . Repair Stations 26 | . . . 6 . . . . . . 2 . 4 . . . 6 . . . . . . . . . 3 2 . 3 Recycling Units 3 | . . . . . . . . . . . 1 2 . . . . . . . . . . . . . . . . . Scanalyzers . | . . . . . . . . . . . . . . . . . . . . . . . . . . . . . . Garrison Access 8 | . . . . . . . . . . 2 2 . . . 1 2 . . . . . . . . . . . 1 . Terminal Hacks 65 | . 6 . 4 . 1 . 6 . . 2 1 7 . . 1 . . . 13 . 2 . . 17 . . 2 1 2 Record 14 | . . . . . 1 . . . . . . . . . . . . . 8 . . . . 5 . . . . . Part Schematic 9 | . 1 . 1 . . . 2 . . . . . . . . . . . . . 1 . . 4 . . . . . Robot Analysis 7 | . 2 . . . . . 1 . . . . . . . . . . . . . . . . 4 . . . . . Prototype ID Bank 8 | . . . . . . . . . . . . . . . . . . . 4 . . . . 4 . . . . . Open Door 5 | . . . . . . . . . . . . 3 . . . . . . 1 . . . . . . . . . 1 Branch Access Points 5 | . . . 1 . . . 1 . . . 1 . . . . . . . . . . . . . . . . 1 1 Emergency Access Points 2 | . . . . . . . . . . . . . . . 1 . . . . . . . . . . . 1 . . Terminal Index 3 | . 1 . 1 . . . 1 . . . . . . . . . . . . . . . . . . . . . . Alert Level 5 | . . . . . . . 1 . . 1 . 1 . . . . . . . . 1 . . . . . 1 . . Unreport Threat 2 | . . . . . . . . . . . . 2 . . . . . . . . . . . . . . . . . Locate Traps 1 | . . . . . . . . . . 1 . . . . . . . . . . . . . . . . . . . Recall Investigation 1 | . . . 1 . . . . . . . . . . . . . . . . . . . . . . . . . . Zone Layout 3 | . 2 . . . . . . . . . . 1 . . . . . . . . . . . . . . . . . Fabricator Hacks 8 | . . . . . . . . . . 2 . . . . . 3 . . . . 3 . . . . . . . . Load Schematic 4 | . . . . . . . . . . 1 . . . . . 2 . . . . 1 . . . . . . . . Build 4 | . . . . . . . . . . 1 . . . . . 1 . . . . 2 . . . . . . . . Repair Station Hacks 19 | . . . 6 . . . . . . 2 . 4 . . . 4 . . . . . . . . . 2 . . 1 Scan Component 10 | . . . 3 . . . . . . 1 . 2 . . . 2 . . . . . . . . . 1 . . 1 Repair 9 | . . . 3 . . . . . . 1 . 2 . . . 2 . . . . . . . . . 1 . . . Recycling Unit Hacks . | . . . . . . . . . . . . . . . . . . . . . . . . . . . . . . Scanalyzer . | . . . . . . . . . . . . . . . . . . . . . . . . . . . . . . Garrison Access Hacks 2 | . . . . . . . . . . 2 . . . . . . . . . . . . . . . . . . . Seal Access 2 | . . . . . . . . . . 2 . . . . . . . . . . . . . . . . . . . Unauthorized Hacks 25 | . 4 . 2 . . . 3 . . 3 1 2 . . 1 1 . . . . 3 . . . . . 3 1 1 Terminals 19 | . 4 . 2 . . . 3 . . 2 . 1 . . 1 . . . . . 2 . . . . . 3 . 1 Track 2 | . . . . . . . 1 . . . . 1 . . . . . . . . . . . . . . . . . Botnet 15 | . 4 . 2 . . . 1 . . 2 . . . . 1 . . . . . 2 . . . . . 2 . 1 Operators 2 | . . . . . . . 1 . . . . . . . . . . . . . . . . . . . 1 . . Fabricators 3 | . . . . . . . . . . 1 . . . . . 1 . . . . 1 . . . . . . . . Prioritize 3 | . . . . . . . . . . 1 . . . . . 1 . . . . 1 . . . . . . . . Repair Stations . | . . . . . . . . . . . . . . . . . . . . . . . . . . . . . . Recycling Units 2 | . . . . . . . . . . . 1 1 . . . . . . . . . . . . . . . . . Mask 2 | . . . . . . . . . . . 1 1 . . . . . . . . . . . . . . . . . Scanalyzers . | . . . . . . . . . . . . . . . . . . . . . . . . . . . . . . Garrison Access 1 | . . . . . . . . . . . . . . . . . . . . . . . . . . . . 1 . Jam 1 | . . . . . . . . . . . . . . . . . . . . . . . . . . . . 1 . Data Cores Recovered . | . . . . . . . . . . . . . . . . . . . . . . . . . . . . . . Used . | . . . . . . . . . . . . . . . . . . . . . . . . . . . . . . Hacking Detections 50 | . 4 . 7 . . . 3 . . 5 2 6 1 . 4 5 . . . . 4 . . . . 3 3 . 3 Full Trace Events 4 | . . . 1 . . . . . . . 1 . 1 . . . . . . . . . . . . . 1 . . Feedback Events . | . . . . . . . . . . . . . . . . . . . . . . . . . . . . . . Feedback Blocked . | . . . . . . . . . . . . . . . . . . . . . . . . . . . . . . Robot Schematics Acquired . | . . . . . . . . . . . . . . . . . . . . . . . . . . . . . . Robots Built . | . . . . . . . . . . . . . . . . . . . . . . . . . . . . . . Matter . | . . . . . . . . . . . . . . . . . . . . . . . . . . . . . . Time . | . . . . . . . . . . . . . . . . . . . . . . . . . . . . . . Total Robot Build Rating . | . . . . . . . . . . . . . . . . . . . . . . . . . . . . . . Part Schematics Acquired 9 | . 1 . 1 . . . 2 . . . . . . . . . . . . . 1 . . 4 . . . . . Parts Built 5 | . . . . . . . . . . 1 . . . . . 1 . . . . 3 . . . . . . . . Matter 738 | . . . . . . . . . . 146 . . . . . 146 . . . . 446 . . . . . . . . Time 299 | . . . . . . . . . . 73 . . . . . 73 . . . . 153 . . . . . . . . Total Part Build Rating 28 | . . . . . . . . . . 3 . . . . . 3 . . . . 22 . . . . . . . . Parts Repaired 8 | . . . 3 . . . . . . . . 2 . . . 2 . . . . . . . . . 1 . . . Time 378 | . . . 78 . . . . . . 19 . 70 . . . 157 . . . . . . . . . 54 . . . Parts Recycled . | . . . . . . . . . . . . . . . . . . . . . . . . . . . . . . Recycled Matter . | . . . . . . . . . . . . . . . . . . . . . . . . . . . . . . Retrieved Matter . | . . . . . . . . . . . . . . . . . . . . . . . . . . . . . . Retrieved Components . | . . . . . . . . . . . . . . . . . . . . . . . . . . . . . . Parts Scanalyzed . | . . . . . . . . . . . . . . . . . . . . . . . . . . . . . . Part Schematics Acquired . | . . . . . . . . . . . . . . . . . . . . . . . . . . . . . . Parts Damaged . | . . . . . . . . . . . . . . . . . . . . . . . . . . . . . . Bothacking | -11 -10 -10 -9 -9 -9 -8 -8 -7 -7 -7 -6 -6 -6 -6 -6 -5 -5 -5 -5 -4 -4 -4 -4 -4 -3 -3 -3 -2 -2 ------------ Run | Scr Mat Min Mat Min Exi Min Mat Fac Was Fac Fac Ext Cet Arc Hub Fac Upp Upp War Pro Fac Upp Upp Zhi Pro Res Tes Res Qua Used RIF Installer . | . . . . . . . . . . . . . . . . . . . . . . . . . . . . . . Robots Hacked . | . . . . . . . . . . . . . . . . . . . . . . . . . . . . . . Non-combat . | . . . . . . . . . . . . . . . . . . . . . . . . . . . . . . Combat . | . . . . . . . . . . . . . . . . . . . . . . . . . . . . . . Robot Hacks Applied . | . . . . . . . . . . . . . . . . . . . . . . . . . . . . . . Relay Couplers Released 6 | . . . . . . . . . . . . . . . . 1 . . . . . . . . . 2 . 3 . Machine Destruction 3 | . . . . . . . . . . . . . . . . 1 . . . . . . . . . 2 . . . Programmers 3 | . . . . . . . . . . . . . . . . . . . . . . . . . . . . 3 . Robots Rewired 23 | . . . . . . . . . . . . 22 . . . . . . . . . . . . . . 1 . . Allies Hacked . | . . . . . . . . . . . . . . . . . . . . . . . . . . . . . . Hacks Repelled . | . . . . . . . . . . . . . . . . . . . . . . . . . . . . . . Allies | -11 -10 -10 -9 -9 -9 -8 -8 -7 -7 -7 -6 -6 -6 -6 -6 -5 -5 -5 -5 -4 -4 -4 -4 -4 -3 -3 -3 -2 -2 -------- Run | Scr Mat Min Mat Min Exi Min Mat Fac Was Fac Fac Ext Cet Arc Hub Fac Upp Upp War Pro Fac Upp Upp Zhi Pro Res Tes Res Qua Total Allies 30 | . . . . . . . . . . . . 26 . . . 3 . . . . . . . . . . 1 . . Largest Group 7 | . . . . . . . . . . . . 7 6 2 . 3 . . . . . . . . . . 1 1 . Highest-Rated Group 236 | . . . . . . . . . . . . 236 216 69 . 93 . . . . . . . . . . 56 56 . Highest-Rated Ally 156 | . . . . . . . . . . . . 156 37 37 . 31 . . . . . . . . . . 56 56 . Total Orders . | . . . . . . . . . . . . . . . . . . . . . . . . . . . . . . Ally Attacks 268 | . . . . . . . . . . . . 175 54 10 . 24 . . . . . . . . . . 3 2 . Total Damage 5174 | . . . . . . . . . . . . 3460 1018 176 . 348 . . . . . . . . . . 137 35 . Kills 47 | . . . . . . . . . . . . 22 17 2 . 4 . . . . . . . . . . 2 . . Allies Corrupted . | . . . . . . . . . . . . . . . . . . . . . . . . . . . . . . Allies Melted 1 | . . . . . . . . . . . . 1 . . . . . . . . . . . . . . . . . Intel | -11 -10 -10 -9 -9 -9 -8 -8 -7 -7 -7 -6 -6 -6 -6 -6 -5 -5 -5 -5 -4 -4 -4 -4 -4 -3 -3 -3 -2 -2 ------- Run | Scr Mat Min Mat Min Exi Min Mat Fac Was Fac Fac Ext Cet Arc Hub Fac Upp Upp War Pro Fac Upp Upp Zhi Pro Res Tes Res Qua Robot Analysis Total 7 | . 2 . . . . . 1 . . . . . . . . . . . . . . . . 4 . . . . . Derelict Logs Recovered 8 | . . 1 . 1 . . . . . . . . . . . . 1 1 . 2 . 1 1 . . . . . . Drone Launches . | . . . . . . . . . . . . . . . . . . . . . . . . . . . . . . Drone Recoveries . | . . . . . . . . . . . . . . . . . . . . . . . . . . . . . . Decoded 0b10 Intel 76 | . . . . . . . . . . . . . . . . . . . . . 15 . . . . 13 25 6 17 Traps 34 | . . . . . . . . . . . . . . . . . . . . . 7 . . . . . 16 1 10 Emergency Access 40 | . . . . . . . . . . . . . . . . . . . . . 8 . . . . 12 8 5 7 Garrisons 2 | . . . . . . . . . . . . . . . . . . . . . . . . . . 1 1 . . Exploration | -11 -10 -10 -9 -9 -9 -8 -8 -7 -7 -7 -6 -6 -6 -6 -6 -5 -5 -5 -5 -4 -4 -4 -4 -4 -3 -3 -3 -2 -2 ------------- Run | Scr Mat Min Mat Min Exi Min Mat Fac Was Fac Fac Ext Cet Arc Hub Fac Upp Upp War Pro Fac Upp Upp Zhi Pro Res Tes Res Qua Turns Passed 23298 | 6 731 287 945 540 317 267 734 135 574 1895 761 2076 352 295 767 2376 419 924 1036 674 977 513 490 316 466 1150 1493 481 1301 Spaces Moved 10327 | 1 369 175 428 285 171 132 333 72 283 875 305 743 173 75 349 863 241 553 604 315 393 264 238 153 207 452 567 146 562 Core 12 | . . . . . . . . . . . . 1 . . . . . . . . . . . . . . . . 11 Treads 10001 | 1 369 175 428 285 171 132 333 72 283 875 305 474 141 75 349 863 241 553 604 315 393 264 238 153 207 452 567 132 551 Legs 314 | . . . . . . . . . . . . 268 32 . . . . . . . . . . . . . . 14 . Wheels . | . . . . . . . . . . . . . . . . . . . . . . . . . . . . . . Hover . | . . . . . . . . . . . . . . . . . . . . . . . . . . . . . . Flight . | . . . . . . . . . . . . . . . . . . . . . . . . . . . . . . Fastest Speed 100 | 160 160 160 160 180 180 200 180 180 180 175 178 150 150 180 180 180 163 163 163 180 180 195 195 195 195 187 172 146 100 Average Speed 179 | 160 160 160 174 180 183 200 181 180 180 179 178 176 174 180 180 182 163 163 163 195 195 195 195 195 195 193 181 181 173 Slowest Speed 2000 | 160 160 160 180 180 200 200 260 180 180 200 178 2000 180 180 180 183 183 163 163 200 200 195 195 195 195 195 187 260 300 Overloaded Moves . | . . . . . . . . . . . . . . . . . . . . . . . . . . . . . . Propulsion Burnouts . | . . . . . . . . . . . . . . . . . . . . . . . . . . . . . . Robots Hopped . | . . . . . . . . . . . . . . . . . . . . . . . . . . . . . . Cave-ins Triggered 1 | . . . . . . . . . . . . . . . . . . . 1 . . . . . . . . . . Exploration Rate (%) 44 | 1 66 55 41 49 54 46 27 3 95 29 11 74 56 69 33 33 45 78 69 52 9 53 47 61 41 15 61 7 45 Regions Visited 29 Branch Regions 18 Pre-discovered Areas 7 | . . . . . 1 . . . . . . . . . . . 1 . . 1 . . 1 3 . . . . . Known Exits Taken 20 | . . . 1 . . . . . . 1 1 1 1 1 1 1 1 1 1 1 1 1 1 1 1 1 1 1 . Unknown Exits Taken 7 | 1 1 1 . 1 1 1 1 . . . . . . . . . . . . . . . . . . . . . . Scrap Searched 8 | . . 1 . 1 . 1 . . . . . . . . . . . 2 . . . 1 1 . 1 . . . . Spaces Dug 22 | . . . 2 . . . . . . . . . . . . 7 . . . . . . . . . 7 4 . 2 Terrain Destroyed 1643 | . . . 16 4 . . 5 . 1 1 25 1 . 14 184 161 2 4 32 43 5 . 7 . . 63 87 11 977 Melee 22 | . . . 2 . . . . . . . . . . . . 7 . . . . . . . . . 7 4 . 2 Projectile 79 | . . . . . . . . . 1 1 . 1 . 14 19 18 2 4 3 . 2 . 7 . . 1 1 1 4 AOE 1542 | . . . 14 4 . . 5 . . . 25 . . . 165 136 . . 29 43 3 . . . . 55 82 10 971 Terrain Rammed . | . . . . . . . . . . . . . . . . . . . . . . . . . . . . . . Walls Destroyed . | . . . . . . . . . . . . . . . . . . . . . . . . . . . . . . Machines Disabled . | . . . . . . . . . . . . . . . . . . . . . . . . . . . . . . Actions | -11 -10 -10 -9 -9 -9 -8 -8 -7 -7 -7 -6 -6 -6 -6 -6 -5 -5 -5 -5 -4 -4 -4 -4 -4 -3 -3 -3 -2 -2 --------- Run | Scr Mat Min Mat Min Exi Min Mat Fac Was Fac Fac Ext Cet Arc Hub Fac Upp Upp War Pro Fac Upp Upp Zhi Pro Res Tes Res Qua Total 13682 | 5 443 180 574 297 175 134 428 84 331 1073 473 1382 225 199 412 1419 255 562 645 353 582 263 246 171 260 631 854 284 742 Wait 1717 | 3 13 . 80 4 . . 42 . . 87 116 374 37 99 1 370 7 . 36 9 152 . . . 30 83 100 34 40 Move 10299 | . 368 174 427 284 170 131 332 72 282 874 304 742 172 74 348 862 240 552 602 314 392 263 237 152 206 452 566 145 562 Hop . | . . . . . . . . . . . . . . . . . . . . . . . . . . . . . . Pick Up 117 | . 7 2 11 . 1 1 10 4 12 4 4 11 1 . 5 7 . . . . 5 . . 1 3 5 1 14 8 Fast Attach 114 | . 2 . 4 . . . 5 . 3 9 2 13 5 2 4 9 . 1 . 1 6 . . 9 1 2 11 11 14 Attach 71 | . . . 2 . . . 2 2 . . 3 12 . . 2 8 . . . 7 . . . . 1 2 9 15 6 Detach 17 | . . . . . . . 3 . . . . 1 . . . 2 . . . 1 4 . . . . . 1 2 3 Swap 129 | 2 4 . 10 1 2 . 6 2 1 14 9 10 2 1 1 18 3 1 1 2 3 . . . 1 8 20 2 5 Drop 164 | . 9 . 10 . 2 . 8 4 19 19 6 5 8 3 9 10 . 1 . . 8 . . 9 3 2 9 7 13 Fire 801 | . 39 . 28 7 . . 17 . 14 63 26 57 . 18 40 117 5 7 5 19 12 . 9 . 15 60 121 54 68 Melee 53 | . . . 2 . . . . . . . . . . . . 8 . . . . . . . . . 13 12 . 18 Ram . | . . . . . . . . . . . . . . . . . . . . . . . . . . . . . . Kick 1 | . . . . . . . . . . . . 1 . . . . . . . . . . . . . . . . . Crush 45 | . 1 4 . 1 . 2 3 . . 3 1 7 . 2 2 8 . . . . . . . . . 4 2 . 5 Escape Stasis 17 | . . . . . . . . . . . 2 14 . . . . . . 1 . . . . . . . . . . Rewire 137 | . . . . . . . . . . . . 135 . . . . . . . . . . . . . . 2 . . Trap . | . . . . . . . . . . . . . . . . . . . . . . . . . . . . . . Miscellaneous . | . . . . . . . . . . . . . . . . . . . . . . . . . . . . . . Route ------- -11/Scrapyard -10/Materials (discovered 4 exits: *Mat x2 / [*Min x2]) -10/Mines -9/Materials (discovered 5 exits: *Mat / *Min x2 / Sto x2) -9/Mines (discovered 4 exits: *Mat x2 / *Exi / [*Zio]) -9/Exiles -8/Mines -8/Materials -7/Factory -7/Waste -7/Factory -6/Factory (discovered 4 exits: Low x2 / *Ext x2) -6/Extension (discovered 2 exits: *Fac / *Cet) -6/Cetus (discovered 2 exits: *Fac / *Arc) -6/Archives -6/Hub_04(d) -5/Factory (discovered 2 exits: *Fac / *Upp) -5/Upper Caves -5/Upper Caves (discovered 2 exits: *Fac / *War) -5/Warlord -4/Proximity Caves -4/Factory -4/Upper Caves -4/Upper Caves (discovered 2 exits: *Res / *Zhi) -4/Zhirov -3/Proximity Caves -3/Research -3/Testing -2/Research (discovered 2 exits: *Qua x2) -2/Quarantine History --------- Turn | Location | Event 7 | -11/Scrapyard | Discovered new exit (range 0) 7 | -11/Scrapyard | Entered Materials 305 | -10/Materials | Build established: Mutant 305 | -10/Materials | Discovered new exit (range 7) 374 | -10/Materials | Discovered new exit (range 15) 489 | -10/Materials | Discovered new exit (range 4) 545 | -10/Materials | Discovered new exit (range 9) 738 | -10/Materials | Entered Mines 924 | -10/Mines | Learned Materials terminal intel 1014 | -10/Mines | Discovered new exit (range 7) 1025 | -10/Mines | Entered Materials 1025 | -9/Materials | Evolved 2 slots: Utility x2 1026 | -9/Materials | Loaded intel: 12 terminal locations 1181 | -9/Materials | Repaired Ion Engine 1209 | -9/Materials | Repaired Lgt. Treads 1416 | -9/Materials | Repaired Lgt. Armor Plating 1523 | -9/Materials | Discovered new exit (range 16) 1675 | -9/Materials | Identified exit to Mines 1675 | -9/Materials | Identified exit to Storage 1970 | -9/Materials | Entered Mines 2021 | -9/Mines | Learned Materials security intel 2067 | -9/Mines | Discovered new exit (range 13) 2371 | -9/Mines | A Derelict revealed a hidden shortcut to a safe place 2469 | -9/Mines | Discovered new exit (range 8) 2501 | -9/Mines | Deemed a non-threat by the Exiles lab entrance 2503 | -9/Mines | Discovered new exit (range 5) 2510 | -9/Mines | Entered Exiles 2555 | -9/Exiles | Met 8R-AWN 2584 | -9/Exiles | Met EX-HEX 2676 | -9/Exiles | Met EX-DEC 2707 | -9/Exiles | Learned location of Zion (-7) 2811 | -9/Exiles | Discovered new exit (range 10) 2827 | -9/Exiles | Entered Mines 3054 | -8/Mines | Build established: Hauler-Mutant 3068 | -8/Mines | Discovered new exit (range 12) 3094 | -8/Mines | Entered Materials 3094 | -8/Materials | Evolved 2 slots: Propulsion x1, Utility x1 3699 | -8/Materials | Discovered new exit (range 5) 3828 | -8/Materials | Entered Factory 3828 | -7/Factory | Evolved 2 slots: Power x1, Propulsion x1 3963 | -7/Factory | Sucked down chute 3963 | -7/Factory | Entered Waste 3963 | -7/Waste | The area was eerily silent 4321 | -7/Waste | Found Damper Plating 4476 | -7/Waste | Discovered new exit (range 13) 4482 | -7/Waste | Found Damper Plating 4528 | -7/Waste | Found Damper Plating 4537 | -7/Waste | Entered Factory 6116 | -7/Factory | Fabricated Adv. Sensor Array (x1) 6326 | -7/Factory | Discovered new exit (range 9) 6342 | -7/Factory | Identified exit to Factory 6432 | -7/Factory | Entered another Factory area 6432 | -6/Factory | Evolved 2 slots: Utility x2 7041 | -6/Factory | Garrison activated, responded to threat 7137 | -6/Factory | Spotted B-75 Beast 7138 | -6/Factory | Identified exit to Lower Caves 7138 | -6/Factory | Identified exit to Extension 7193 | -6/Factory | Entered Extension 7393 | -6/Extension | Rescued A7 7972 | -6/Extension | Spotted B-75 Beast 7982 | -6/Extension | Spotted B-75 Beast 8193 | -6/Extension | Extracted ID and sensor layout for unrecognized location from A7's data core 8311 | -6/Extension | Lost 13 parts (2p6n3u2w) 8402 | -6/Extension | Lost 5 parts (2p2n1w) 8418 | -6/Extension | Disrupted transfer network 8470 | -6/Extension | Core integrity fell below 50% 8503 | -6/Extension | Lost 4 parts (1n2u1w) 8872 | -6/Extension | Rescued a captive Derelict 8873 | -6/Extension | Rescued a captive Derelict 8967 | -6/Extension | Repaired Lgt. Treads 9012 | -6/Extension | Repaired Gauss Rifle 9197 | -6/Extension | Rescued a captive Derelict 9239 | -6/Extension | Discovered new exit (range 10) 9240 | -6/Extension | Discovered new exit (range 6) 9262 | -6/Extension | Identified exit to Factory 9266 | -6/Extension | Identified exit to Cetus 9269 | -6/Extension | Entered Cetus 9269 | -6/Cetus | Accompanied by 6 allies 9289 | -6/Cetus | Spotted Cetus Guard 9289 | -6/Cetus | Spotted Cetus Guard 9295 | -6/Cetus | Spotted Cetus Guard 9298 | -6/Cetus | Allies destroyed Cetus Guard 9303 | -6/Cetus | Allies destroyed Cetus Guard 9306 | -6/Cetus | Allies destroyed Cetus Guard 9462 | -6/Cetus | Discovered new exit (range 15) 9497 | -6/Cetus | Spotted Cetus Guard 9497 | -6/Cetus | Spotted Cetus Guard 9528 | -6/Cetus | Discovered exit to Factory (range 15) 9537 | -6/Cetus | Met Revision 17 9619 | -6/Cetus | Identified exit to Archives 9621 | -6/Cetus | Entered Archives 9621 | -6/Archives | Accompanied by 2 allies 9650 | -6/Archives | Build established: Scavenger-Mutant 9882 | -6/Archives | Discovered new exit (range 16) 9914 | -6/Archives | Identified exit to Hub_04(d) 9916 | -6/Archives | Entered Hub_04(d) 10165 | -6/Hub_04(d) | Spotted B-75 Beast 10540 | -6/Hub_04(d) | Discovered exit to Factory (range 10) 10633 | -6/Hub_04(d) | Network Hub disabled 10638 | -6/Hub_04(d) | Spotted Lightning 10644 | -6/Hub_04(d) | Spotted Lightning 10646 | -6/Hub_04(d) | Spotted Lightning 10648 | -6/Hub_04(d) | Spotted Lightning 10649 | -6/Hub_04(d) | Spotted Lightning 10651 | -6/Hub_04(d) | Spotted Lightning 10653 | -6/Hub_04(d) | Spotted Lightning 10655 | -6/Hub_04(d) | Spotted Lightning 10656 | -6/Hub_04(d) | Spotted Lightning 10658 | -6/Hub_04(d) | Spotted Lightning 10659 | -6/Hub_04(d) | Spotted Lightning 10661 | -6/Hub_04(d) | Spotted Lightning 10664 | -6/Hub_04(d) | Garrison activated, responded to threat 10683 | -6/Hub_04(d) | Entered Factory 10683 | -5/Factory | Evolved 2 slots: Utility x2 10946 | -5/Factory | Garrison activated, responded to threat 11317 | -5/Factory | Build established: Hauler-Mutant 11521 | -5/Factory | Repaired Centrium Heavy Treads 11726 | -5/Factory | Discovered new exit (range 11) 11765 | -5/Factory | Identified exit to Factory 12348 | -5/Factory | Repaired Imp. KE Penetrator 12483 | -5/Factory | First assault squad dispatched 12940 | -5/Factory | Fabricated Adv. Sensor Array (x1) 12988 | -5/Factory | Discovered new exit (range 16) 13040 | -5/Factory | Identified exit to Upper Caves 13059 | -5/Factory | Entered Upper Caves 13210 | -5/Upper Caves | Spotted B-75 Beast 13449 | -5/Upper Caves | Encountered a Warlord checkpoint 13456 | -5/Upper Caves | Discovered new exit (range 12) 13476 | -5/Upper Caves | Identified exit to Upper Caves 13478 | -5/Upper Caves | Entered another Upper Caves area 13508 | -5/Upper Caves | Discovered exit to Factory (range 11) 13760 | -5/Upper Caves | Learned Factory interactive machine intel 14185 | -5/Upper Caves | Attracted the attention of an 0b10 checkpoint 14380 | -5/Upper Caves | Discovered new exit (range 10) 14397 | -5/Upper Caves | Identified exit to Warlord 14402 | -5/Upper Caves | Entered Warlord 14464 | -5/Warlord | System corruption cleaned by Quarantine Array 15139 | -5/Warlord | Met Warlord 15164 | -5/Warlord | Warlord's base attacked by MAIN.C 15365 | -5/Warlord | Warlord forces counterattacked 15409 | -5/Warlord | Crushed by falling debris 15422 | -5/Warlord | Discovered new exit (range 12) 15436 | -5/Warlord | Identified exit to Proximity Caves 15438 | -5/Warlord | Entered Proximity Caves 15474 | -4/Proximity Caves | Lost 4 parts (1n3u) 15617 | -4/Proximity Caves | Received a Behemoth hack from an annoying Tinkerer 15810 | -4/Proximity Caves | Learned location of Armory (-3) 16068 | -4/Proximity Caves | Learned Research stockpile data 16076 | -4/Proximity Caves | Discovered exit to Factory (range 15) 16112 | -4/Proximity Caves | Entered Factory 16112 | -4/Factory | Evolved 2 slots: Utility x2 16113 | -4/Factory | Loaded intel: 46 interactive machine locations 16183 | -4/Factory | Build established: Scavenger-Mutant 16260 | -4/Factory | Discovered new exit (range 14) 16286 | -4/Factory | Identified exit to Upper Caves 16525 | -4/Factory | Found Launcher Loader 16602 | -4/Factory | Build established: Hauler-Mutant 16744 | -4/Factory | Fabricated Lrn. Sensor Array (x1) 16822 | -4/Factory | Local fabrication network quarantined 16844 | -4/Factory | Fabricated Rnf. Quantum Reactor (x2) 17089 | -4/Factory | Entered Upper Caves 17249 | -4/Upper Caves | Learned Research trap positions 17387 | -4/Upper Caves | Encountered a Warlord checkpoint 17593 | -4/Upper Caves | Discovered new exit (range 4) 17600 | -4/Upper Caves | Identified exit to Upper Caves 17602 | -4/Upper Caves | Entered another Upper Caves area 17603 | -4/Upper Caves | Encountered a Warlord checkpoint 17723 | -4/Upper Caves | Discovered new exit (range 7) 17733 | -4/Upper Caves | Learned location of Testing (-3) 17739 | -4/Upper Caves | Identified exit to Research 18060 | -4/Upper Caves | Discovered new exit (range 15) 18090 | -4/Upper Caves | Identified exit to Zhirov 18092 | -4/Upper Caves | Entered Zhirov 18092 | -4/Zhirov | Discovered new exit (range 3) 18128 | -4/Zhirov | Met Zhirov 18174 | -4/Zhirov | Learned location of Quarantine (-2) 18174 | -4/Zhirov | Learned location of Command (-1) 18200 | -4/Zhirov | Zhirov requested help retrieving the SGEMP Prototype 18231 | -4/Zhirov | Found Alien Artifact 18231 | -4/Zhirov | Identified Integrated Dissipator 18231 | -4/Zhirov | Installed Integrated Dissipator, increased core heat dissipation (+20) 18258 | -4/Zhirov | Found Alien Artifact 18406 | -4/Zhirov | Identified exit to Proximity Caves 18408 | -4/Zhirov | Entered Proximity Caves 18631 | -3/Proximity Caves | Attracted the attention of an 0b10 checkpoint 18849 | -3/Proximity Caves | Discovered exit to Research (range 13) 18874 | -3/Proximity Caves | Entered Research 18874 | -3/Research | Evolved 2 slots: Utility x2 18875 | -3/Research | Loaded intel: 63 trap records 19142 | -3/Research | Garrison activated, responded to threat 19279 | -3/Research | Destroyed 7 combat bots 19363 | -3/Research | Destroyed 7 combat bots 19756 | -3/Research | Repaired Centrium Heavy Treads 19935 | -3/Research | Discovered new exit (range 13) 19973 | -3/Research | Found Gamma Bomb Array 19997 | -3/Research | Identified exit to Testing 20024 | -3/Research | Entered Testing 20026 | -3/Testing | Spotted PH-037PN40R5Q 20033 | -3/Testing | Destroyed PH-037PN40R5Q 20163 | -3/Testing | Found Prototype Energy Gun 20163 | -3/Testing | Identified Tachyon Dispersion Ray 20524 | -3/Testing | First assault squad dispatched 20728 | -3/Testing | Spotted PX-WMMP9A4RDL 20740 | -3/Testing | Destroyed PX-WMMP9A4RDL 20805 | -3/Testing | Garrison activated, responded to threat 21114 | -3/Testing | Discovered new exit (range 20) 21217 | -3/Testing | Identified exit to Research 21315 | -3/Testing | System corruption reached 10% 21331 | -3/Testing | Scanned by Researcher 21372 | -3/Testing | Lost 7 parts (2n3u2w) 21517 | -3/Testing | Entered Research 21517 | -2/Research | Accompanied by 1 ally 21517 | -2/Research | Warlord forces began assault on 0b10 21517 | -2/Research | Evolved 2 slots: Utility x2 21553 | -2/Research | Identified exit to Quarantine 21627 | -2/Research | Research machine network offline 21636 | -2/Research | Lost 6 parts (1p2n3w) 21788 | -2/Research | Borebot progress halted 21815 | -2/Research | Found Prototype Processor 21815 | -2/Research | Identified Exp. Targeting Computer 21822 | -2/Research | Found Exp. Targeting Computer 21827 | -2/Research | Found Exp. Targeting Computer 21851 | -2/Research | Spotted Striker 21886 | -2/Research | Destroyed Striker 21910 | -2/Research | Borebot progress halted 21922 | -2/Research | Lost 6 parts (3p1n1u1w) 21998 | -2/Research | Entered Quarantine 22031 | -2/Quarantine | P-80 Master assimilated allied 0V-10Y(M) 22240 | -2/Quarantine | Found Alien Launcher 22240 | -2/Quarantine | Identified Sigix Terminator 22270 | -2/Quarantine | Build established: Scavenger-Mutant 22440 | -2/Quarantine | Found Alien Artifact 22440 | -2/Quarantine | Identified Stasis Generator 22573 | -2/Quarantine | System corruption reached 10% 22628 | -2/Quarantine | Lost 5 parts (1n3u1w) 22991 | -2/Quarantine | Found Launcher Loader 23026 | -2/Quarantine | Found Prototype Device 23026 | -2/Quarantine | Identified Exp. Actuator Array 23266 | -2/Quarantine | Spotted Fortress 23268 | -2/Quarantine | Fired Sigix Terminator 23269 | -2/Quarantine | Core integrity fell below 50% 23269 | -2/Quarantine | Core integrity fell below 20% 23299 | -2/Quarantine | Destroyed by Fortress with Enhanced Nova Cannon Last Messages --------------- 23192_ Triggered Segregator Trap. 23192_ Arcs of energy rise from the floor. 23210_ U-05 Engineer lays Concrete. 23218_ >> DECODED: Gamma Bomb Trap location. 23222_ System corrupted: Heat flow error (+221). 23248_ ALERT: Rogue bot located, Programmers report to Quarantine Zone 5P. 23259_ System corrupted: Matter fused (-10). 23268_ Sigix Terminator expended. 23268_ Machine disabled. 23268_ Hcp. Storage Unit destroyed. 23268_ Destroyed Hcp. Storage Unit. 23278_ Hcp. Storage Unit destroyed. 23281_ System corrupted: Energy discharge (-51). 23284_ Critical hit. 23284_ Imp. Heavy Treads destroyed. 23284_ Knocked back. 23290_ Launcher Loader destroyed. 23293_ Imp. Heat Shielding destroyed. 23293_ Exp. Targeting Computer destroyed. 23297_ System corrupted: Energy discharge (-37). Map ----- +----------------------------------------------------+ | ?????????????????????????????????????????????????? | | ?????????????????????????????????????????????????? | | ?????????????????????????????????????????????????? | | ?????????????????????????????????????????????????? | | ?????????????????????????????????????????????????? | | ?????????????????????????????????????????????????? | | ?????????????????????????????????????????????????? | | ?????????????????????????????????????????????????? | | ?????????????????????????????????????????????????? | | ?????????????????????????????????????????????????? | | ???????????? ###???????????????????????????????? | | ??????### ####???????????????????????????? | | ???### ###?????????????????????????? | | #### ####??????????????????????? | | # ####???????????????????? | | #???????????????????? | | #???????????????????? | | ##??????????????????? | | #??????????????????? | | #??????????????????? | | ##?????????????????? | | #?????????????????? | | """"""""""";;;;;;;;;;;;;;;;;;;;#########?????????? | | ????????? | | ????????? | | ![! @ ????????? | | =! [[= ????????? | | [ [! ????????? | | ?????????? | | """"""""" FFF ;;;;;;;;;;;;;;;;;;######?????????? | | " FF ; #??????????????? | | " FF ; #??????????????? | | " ; ##??????????????? | | " ; #???????????????? | | " ; #???????????????? | | """""";;; ##???????????????? | | #????????????????? | | #????????????????? | | ##????????????????? | | ???????????????????? | | ?????????????????????? | | ? ?????????????????????????????????? | | ?????????????????????????????????????????????????? | | ?????????????????????????????????????????????????? | | ?????????????????????????????????????????????????? | | ?????????????????????????????????????????????????? | | ?????????????????????????????????????????????????? | | ?????????????????????????????????????????????????? | | ?????????????????????????????????????????????????? | | ?????????????????????????????????????????????????? | +----------------------------------------------------+ Best States ------------- Heat Dissipation 69 Energy Generation 45 Energy Capacity 900 Matter Stores 300 Matter Capacity 600 Sight Range 18 Robot Scan Range 20 Terrain Scan Range 24 Terrain Scan Density 210 Heat Shielding 100 Armor Coverage 3150 Resistance: KI 20 Resistance: TH 35 Resistance: EX 20 Resistance: EM 100 Resistance: I 20 Resistance: S 20 Resistance: P 20 Core Shielding 30 Utility Shielding 90 Melee Speed Boost 20 Evasion (%) 40 Targeting Accuracy 36 Target Analysis 8 Armor Integrity Analysis 66 Recoil Reduction 4 Offensive Hacking 24 Item Schematics ----------------- Hcp. Storage Unit | -10/Materials | Hacked Med. Storage Unit | -9/Materials | Hacked Adv. Sensor Array | -8/Materials | Hacked Adv. Signal Interpreter | -8/Materials | Hacked Lrn. Sensor Array | -4/Factory | Hacked Assault Drone Bay | -4/Zhirov | Free Exp. Optical Array | -4/Zhirov | Free Exp. Heat Sink | -4/Zhirov | Free Imp. Arc Thrower | -4/Zhirov | Free Robot Schematics ------------------ None Fabricated ------------ Adv. Sensor Array | x1 | -7/Factory Adv. Sensor Array | x1 | -5/Factory Lrn. Sensor Array | x1 | -4/Factory Rnf. Quantum Reactor | x2 | -4/Factory | Preloaded Alien Tech Used ----------------- Integrated Dissipator Sigix Terminator Stasis Generator Achievements -------------- Decoder Ring Challenges ------------ None Game ------ Seed ArcBlastAirjet Manual? 0 Play Time 02:45:28 Cumulative 245.3 hours Start 2021.01.15 @ 13:25:11 End 2021.01.15 @ 20:11:40 Sessions 2 Manual Loads 0 Difficulty Adventurer Special Mode None Game No. 227 Rogue 95 Adventurer 65 Explorer 67 Win Type - Total 14 Types 11/0/2/1/0/0/0/0/0 Lore% 73 Gallery% 82 Achievement% 64 Wizard Run 0 Options --------- ASCII 0 Keyboard 0 Movement Numpad Keybinds 0 Fullscreen 2 Font 18/TerminusBold Map View 76x50 Tactical HUD 1 Map Filters NONE Filters NONE Steam 1 RUN: 5071580e-5e46-4f05-8214-450115586f61